Workbook

Sheet usa map
B2: Drill Down Choropleth Map - USA by states and counties | N2: www.cs-analytics.de
B4: Year | E4: Colors | K4: Click on an icon to toggle the map level of detail
B7: click on a region on the map to toggle the level of detail
C10: =control!D19 -> 0% to 1%
C11: =control!D20 -> 1% to 2%
C12: =control!D21 -> 2% to 3%
C13: =control!D22 -> 3% to 4%
C14: =control!D23 -> 4% to 5%
C15: =control!D24 -> 5% to 7%
C16: =control!D25 -> 7% to 9%
C17: =control!D26 -> 9% to 11%
C18: =control!D27 -> 11% to 15%
C19: =control!D28 -> 15% or more

Sheet data
B2: Data | P2: Selection / Shape Definition
B4: The source data | P4: Selected data, shape name definition and shape index
B5: No. | C5: State | D5: County | E5: 2003 | F5: 2004 | G5: 2005 | H5: 2006 | I5: 2007 | J5: 2008 | K5: 2009 | L5: 2010 | M5: 2011 | N5: 2012 | P5: Selection | Q5: Shape Names | R5: Shape Index
B6: 1 | C6: AK | D6: Aleutians East, AK | E6: 0.096 | F6: 0.086 | G6: 0.096 | H6: 0.084 | I6: 0.077 | J6: 0.083 | K6: 0.099 | L6: 0.105 | M6: 0.111 | N6: 0.1221666667 | P6: =INDEX(E6:N6,1,control!$C$15) -> 0.105 | Q6: S2_AK_Aleutians_East | R6: 1
B7: =B3140+1 -> 2 | C7: AK | D7: Aleutians West, AK | E7: 0.063 | F7: 0.064 | G7: 0.057 | H7: 0.056 | I7: 0.052 | J7: 0.056 | K7: 0.07 | L7: 0.069 | M7: 0.078 | N7: 0.08733333333 | P7: =INDEX(E7:N7,1,control!$C$15) -> 0.069 | Q7: S2_AK_Aleutians_West | R7: 2
B8: =B7+1 -> 3 | C8: AK | D8: Anchorage, AK | E8: 0.062 | F8: 0.059 | G8: 0.055 | H8: 0.052 | I8: 0.049 | J8: 0.052 | K8: 0.065 | L8: 0.068 | M8: 0.061 | N8: 0.059 | P8: =INDEX(E8:N8,1,control!$C$15) -> 0.068 | Q8: S2_AK_Anchorage | R8: 3
B9: 4 | C9: AK | D9: Bethel, AK | E9: 0.12 | F9: 0.126 | G9: 0.128 | H9: 0.13 | I9: 0.123 | J9: 0.134 | K9: 0.141 | L9: 0.149 | M9: 0.147 | N9: 0.157 | P9: =INDEX(E9:N9,1,control!$C$15) -> 0.149 | Q9: S2_AK_Bethel | R9: 4
B10: 5 | C10: AK | D10: Bristol Bay, AK | E10: 0.061 | F10: 0.063 | G10: 0.059 | H10: 0.053 | I10: 0.045 | J10: 0.047 | K10: 0.048 | L10: 0.047 | M10: 0.039 | N10: 0.07983333333 | P10: =INDEX(E10:N10,1,control!$C$15) -> 0.047 | Q10: S2_AK_Bristol_Bay | R10: 5
B11: 6 | C11: AK | D11: Denali, AK | E11: 0.086 | F11: 0.079 | G11: 0.066 | H11: 0.057 | I11: 0.06 | J11: 0.059 | K11: 0.083 | L11: 0.089 | M11: 0.099 | N11: 0.1535 | P11: =INDEX(E11:N11,1,control!$C$15) -> 0.089 | Q11: S2_AK_Denali | R11: 6
B12: 7 | C12: AK | D12: Dillingham, AK | E12: 0.11 | F12: 0.108 | G12: 0.107 | H12: 0.094 | I12: 0.088 | J12: 0.09 | K12: 0.102 | L12: 0.101 | M12: 0.102 | N12: 0.1056666667 | P12: =INDEX(E12:N12,1,control!$C$15) -> 0.101 | Q12: S2_AK_Dillingham | R12: 7
B13: 8 | C13: AK | D13: Fairbanks North Star, AK | E13: 0.069 | F13: 0.064 | G13: 0.058 | H13: 0.056 | I13: 0.053 | J13: 0.058 | K13: 0.071 | L13: 0.069 | M13: 0.067 | N13: 0.06866666667 | P13: =INDEX(E13:N13,1,control!$C$15) -> 0.069 | Q13: S2_AK_Fairbanks_North_Star | R13: 8
B14: 9 | C14: AK | D14: Haines, AK | E14: 0.115 | F14: 0.099 | G14: 0.09 | H14: 0.079 | I14: 0.071 | J14: 0.085 | K14: 0.09 | L14: 0.091 | M14: 0.082 | N14: 0.1005 | P14: =INDEX(E14:N14,1,control!$C$15) -> 0.091 | Q14: S2_AK_Haines | R14: 9
B15: 10 | C15: AK | D15: Juneau, AK | E15: 0.057 | F15: 0.058 | G15: 0.053 | H15: 0.048 | I15: 0.043 | J15: 0.046 | K15: 0.059 | L15: 0.058 | M15: 0.053 | N15: 0.051 | P15: =INDEX(E15:N15,1,control!$C$15) -> 0.058 | Q15: S2_AK_Juneau | R15: 10
B16: 11 | C16: AK | D16: Kenai Peninsula, AK | E16: 0.1 | F16: 0.095 | G16: 0.087 | H16: 0.081 | I16: 0.076 | J16: 0.079 | K16: 0.098 | L16: 0.1 | M16: 0.093 | N16: 0.09266666667 | P16: =INDEX(E16:N16,1,control!$C$15) -> 0.1 | Q16: S2_AK_Kenai_Peninsula | R16: 11
B17: 12 | C17: AK | D17: Ketchikan Gateway, AK | E17: 0.08 | F17: 0.074 | G17: 0.067 | H17: 0.06 | I17: 0.054 | J17: 0.057 | K17: 0.071 | L17: 0.077 | M17: 0.073 | N17: 0.07733333333 | P17: =INDEX(E17:N17,1,control!$C$15) -> 0.077 | Q17: S2_AK_Ketchikan_Gateway | R17: 12
B18: 13 | C18: AK | D18: Kodiak Island, AK | E18: 0.096 | F18: 0.087 | G18: 0.083 | H18: 0.073 | I18: 0.06 | J18: 0.066 | K18: 0.072 | L18: 0.072 | M18: 0.069 | N18: 0.0615 | P18: =INDEX(E18:N18,1,control!$C$15) -> 0.072 | Q18: S2_AK_Kodiak_Island | R18: 13
B19: 14 | C19: AK | D19: Lake and Peninsula, AK | E19: 0.08 | F19: 0.098 | G19: 0.073 | H19: 0.059 | I19: 0.053 | J19: 0.066 | K19: 0.081 | L19: 0.08 | M19: 0.079 | N19: 0.1003333333 | P19: =INDEX(E19:N19,1,control!$C$15) -> 0.08 | Q19: S2_AK_Lake_and_Peninsula | R19: 14
B20: 15 | C20: AK | D20: Matanuska-Susitna, AK | E20: 0.086 | F20: 0.083 | G20: 0.076 | H20: 0.074 | I20: 0.069 | J20: 0.073 | K20: 0.089 | L20: 0.091 | M20: 0.089 | N20: 0.09133333333 | P20: =INDEX(E20:N20,1,control!$C$15) -> 0.091 | Q20: S2_AK_Matanuska_Susitna | R20: 15
B21: 16 | C21: AK | D21: Nome, AK | E21: 0.107 | F21: 0.115 | G21: 0.124 | H21: 0.119 | I21: 0.107 | J21: 0.1 | K21: 0.117 | L21: 0.127 | M21: 0.123 | N21: 0.1196666667 | P21: =INDEX(E21:N21,1,control!$C$15) -> 0.127 | Q21: S2_AK_Nome | R21: 16
B22: 17 | C22: AK | D22: North Slope, AK | E22: 0.101 | F22: 0.102 | G22: 0.09 | H22: 0.067 | I22: 0.052 | J22: 0.041 | K22: 0.047 | L22: 0.059 | M22: 0.054 | N22: 0.05483333333 | P22: =INDEX(E22:N22,1,control!$C$15) -> 0.059 | Q22: S2_AK_North_Slope | R22: 17
B23: 18 | C23: AK | D23: Northwest Arctic, AK | E23: 0.13 | F23: 0.132 | G23: 0.119 | H23: 0.112 | I23: 0.104 | J23: 0.111 | K23: 0.119 | L23: 0.131 | M23: 0.147 | N23: 0.156 | P23: =INDEX(E23:N23,1,control!$C$15) -> 0.131 | Q23: S2_AK_Northwest_Arctic | R23: 18
B24: 19 | C24: AK | D24: Prince of Wales-Outer Ketchikan, AK | E24: 0.144 | F24: 0.134 | G24: 0.131 | H24: 0.141 | I24: 0.131 | J24: 0.133 | K24: 0.152 | L24: 0.148 | M24: 0.153 | N24: 0.1663333333 | P24: =INDEX(E24:N24,1,control!$C$15) -> 0.148 | Q24: S2_AK_Prince_of_Wales_Outer_Ketchikan | R24: 19
B25: 20 | C25: AK | D25: Sitka, AK | E25: 0.061 | F25: 0.063 | G25: 0.055 | H25: 0.053 | I25: 0.049 | J25: 0.056 | K25: 0.062 | L25: 0.064 | M25: 0.061 | N25: 0.0625 | P25: =INDEX(E25:N25,1,control!$C$15) -> 0.064 | Q25: S2_AK_Sitka | R25: 20
B26: 21 | C26: AK | D26: Skagway-Hoonah-Angoon, AK | E26: 0.117 | F26: 0.131 | G26: 0.133 | H26: 0.125 | I26: 0.12 | J26: 0.124 | K26: 0.147 | L26: 0.135 | M26: 0.143 | N26: 0.276 | P26: =INDEX(E26:N26,1,control!$C$15) -> 0.135 | Q26: S2_AK_Skagway_Hoonah_Angoon | R26: 21
B27: 22 | C27: AK | D27: Southeast Fairbanks, AK | E27: 0.127 | F27: 0.119 | G27: 0.105 | H27: 0.106 | I27: 0.084 | J27: 0.085 | K27: 0.096 | L27: 0.108 | M27: 0.109 | N27: 0.114 | P27: =INDEX(E27:N27,1,control!$C$15) -> 0.108 | Q27: S2_AK_Southeast_Fairbanks | R27: 22
B28: 23 | C28: AK | D28: Valdez-Cordova, AK | E28: 0.099 | F28: 0.099 | G28: 0.095 | H28: 0.084 | I28: 0.081 | J28: 0.081 | K28: 0.085 | L28: 0.089 | M28: 0.091 | N28: 0.09733333333 | P28: =INDEX(E28:N28,1,control!$C$15) -> 0.089 | Q28: S2_AK_Valdez_Cordova | R28: 23
B29: 24 | C29: AK | D29: Wade Hampton, AK | E29: 0.177 | F29: 0.201 | G29: 0.209 | H29: 0.205 | I29: 0.197 | J29: 0.198 | K29: 0.208 | L29: 0.203 | M29: 0.204 | N29: 0.2208333333 | P29: =INDEX(E29:N29,1,control!$C$15) -> 0.203 | Q29: S2_AK_Wade_Hampton | R29: 24
B30: 25 | C30: AK | D30: Wrangell-Petersburg, AK | E30: 0.12 | F30: 0.123 | G30: 0.101 | H30: 0.094 | I30: 0.093 | J30: 0.102 | K30: 0.104 | L30: 0.106 | M30: 0.086 | N30: 0.116 | P30: =INDEX(E30:N30,1,control!$C$15) -> 0.106 | Q30: S2_AK_Wrangell_Petersburg | R30: 25
B31: 26 | C31: AK | D31: Yakutat, AK | E31: 0.111 | F31: 0.107 | G31: 0.106 | H31: 0.096 | I31: 0.065 | J31: 0.072 | K31: 0.115 | L31: 0.11 | M31: 0.107 | N31: 0.1143333333 | P31: =INDEX(E31:N31,1,control!$C$15) -> 0.11 | Q31: S2_AK_Yakutat | R31: 26
B32: 27 | C32: AK | D32: Yukon-Koyukuk, AK | E32: 0.133 | F32: 0.119 | G32: 0.117 | H32: 0.129 | I32: 0.133 | J32: 0.136 | K32: 0.141 | L32: 0.15 | M32: 0.157 | N32: 0.1648333333 | P32: =INDEX(E32:N32,1,control!$C$15) -> 0.15 | Q32: S2_AK_Yukon_Koyukuk | R32: 27
B33: 28 | C33: AL | D33: Autauga, AL | E33: 0.046 | F33: 0.043 | G33: 0.032 | H33: 0.029 | I33: 0.028 | J33: 0.045 | K33: 0.087 | L33: 0.078 | M33: 0.08 | N33: 0.06766666667 | P33: =INDEX(E33:N33,1,control!$C$15) -> 0.078 | Q33: S2_AL_Autauga | R33: 28
B34: 29 | C34: AL | D34: Baldwin, AL | E34: 0.045 | F34: 0.046 | G34: 0.034 | H34: 0.028 | I34: 0.027 | J34: 0.041 | K34: 0.088 | L34: 0.089 | M34: 0.081 | N34: 0.07033333333 | P34: =INDEX(E34:N34,1,control!$C$15) -> 0.089 | Q34: S2_AL_Baldwin | R34: 29
B35: 30 | C35: AL | D35: Barbour, AL | E35: 0.064 | F35: 0.064 | G35: 0.049 | H35: 0.049 | I35: 0.054 | J35: 0.078 | K35: 0.129 | L35: 0.117 | M35: 0.114 | N35: 0.1125 | P35: =INDEX(E35:N35,1,control!$C$15) -> 0.117 | Q35: S2_AL_Barbour | R35: 30
B36: 31 | C36: AL | D36: Bibb, AL | E36: 0.054 | F36: 0.049 | G36: 0.038 | H36: 0.036 | I36: 0.035 | J36: 0.052 | K36: 0.12 | L36: 0.103 | M36: 0.099 | N36: 0.08233333333 | P36: =INDEX(E36:N36,1,control!$C$15) -> 0.103 | Q36: S2_AL_Bibb | R36: 31
B37: 32 | C37: AL | D37: Blount, AL | E37: 0.042 | F37: 0.037 | G37: 0.031 | H37: 0.028 | I37: 0.027 | J37: 0.041 | K37: 0.09 | L37: 0.09 | M37: 0.083 | N37: 0.06883333333 | P37: =INDEX(E37:N37,1,control!$C$15) -> 0.09 | Q37: S2_AL_Blount | R37: 32
B38: 33 | C38: AL | D38: Bullock, AL | E38: 0.1 | F38: 0.104 | G38: 0.081 | H38: 0.077 | I38: 0.082 | J38: 0.094 | K38: 0.141 | L38: 0.147 | M38: 0.153 | N38: 0.1296666667 | P38: =INDEX(E38:N38,1,control!$C$15) -> 0.147 | Q38: S2_AL_Bullock | R38: 33
B39: 34 | C39: AL | D39: Butler, AL | E39: 0.079 | F39: 0.085 | G39: 0.055 | H39: 0.049 | I39: 0.053 | J39: 0.076 | K39: 0.148 | L39: 0.123 | M39: 0.116 | N39: 0.1105 | P39: =INDEX(E39:N39,1,control!$C$15) -> 0.123 | Q39: S2_AL_Butler | R39: 34
B40: 35 | C40: AL | D40: Calhoun, AL | E40: 0.054 | F40: 0.049 | G40: 0.038 | H40: 0.035 | I40: 0.034 | J40: 0.05 | K40: 0.1 | L40: 0.097 | M40: 0.092 | N40: 0.08 | P40: =INDEX(E40:N40,1,control!$C$15) -> 0.097 | Q40: S2_AL_Calhoun | R40: 35
B41: 36 | C41: AL | D41: Chambers, AL | E41: 0.058 | F41: 0.062 | G41: 0.049 | H41: 0.05 | I41: 0.056 | J41: 0.129 | K41: 0.178 | L41: 0.137 | M41: 0.114 | N41: 0.1003333333 | P41: =INDEX(E41:N41,1,control!$C$15) -> 0.137 | Q41: S2_AL_Chambers | R41: 36
B42: 37 | C42: AL | D42: Cherokee, AL | E42: 0.044 | F42: 0.043 | G42: 0.037 | H42: 0.036 | I42: 0.036 | J42: 0.051 | K42: 0.105 | L42: 0.093 | M42: 0.087 | N42: 0.07633333333 | P42: =INDEX(E42:N42,1,control!$C$15) -> 0.093 | Q42: S2_AL_Cherokee | R42: 37
B43: 38 | C43: AL | D43: Chilton, AL | E43: 0.045 | F43: 0.042 | G43: 0.033 | H43: 0.031 | I43: 0.029 | J43: 0.045 | K43: 0.096 | L43: 0.092 | M43: 0.086 | N43: 0.07066666667 | P43: =INDEX(E43:N43,1,control!$C$15) -> 0.092 | Q43: S2_AL_Chilton | R43: 38
B44: 39 | C44: AL | D44: Choctaw, AL | E44: 0.091 | F44: 0.077 | G44: 0.056 | H44: 0.048 | I44: 0.051 | J44: 0.074 | K44: 0.122 | L44: 0.113 | M44: 0.114 | N44: 0.0965 | P44: =INDEX(E44:N44,1,control!$C$15) -> 0.113 | Q44: S2_AL_Choctaw | R44: 39
B45: 40 | C45: AL | D45: Clarke, AL | E45: 0.078 | F45: 0.079 | G45: 0.055 | H45: 0.054 | I45: 0.052 | J45: 0.08 | K45: 0.15 | L45: 0.156 | M45: 0.152 | N45: 0.125 | P45: =INDEX(E45:N45,1,control!$C$15) -> 0.156 | Q45: S2_AL_Clarke | R45: 40
B46: 41 | C46: AL | D46: Clay, AL | E46: 0.066 | F46: 0.057 | G46: 0.042 | H46: 0.039 | I46: 0.047 | J46: 0.07 | K46: 0.151 | L46: 0.138 | M46: 0.118 | N46: 0.09733333333 | P46: =INDEX(E46:N46,1,control!$C$15) -> 0.138 | Q46: S2_AL_Clay | R46: 41
B47: 42 | C47: AL | D47: Cleburne, AL | E47: 0.055 | F47: 0.047 | G47: 0.034 | H47: 0.03 | I47: 0.031 | J47: 0.045 | K47: 0.092 | L47: 0.083 | M47: 0.083 | N47: 0.0705 | P47: =INDEX(E47:N47,1,control!$C$15) -> 0.083 | Q47: S2_AL_Cleburne | R47: 42
B48: 43 | C48: AL | D48: Coffee, AL | E48: 0.05 | F48: 0.048 | G48: 0.033 | H48: 0.032 | I48: 0.033 | J48: 0.043 | K48: 0.076 | L48: 0.074 | M48: 0.071 | N48: 0.06366666667 | P48: =INDEX(E48:N48,1,control!$C$15) -> 0.074 | Q48: S2_AL_Coffee | R48: 43
B49: 44 | C49: AL | D49: Colbert, AL | E49: 0.068 | F49: 0.063 | G49: 0.046 | H49: 0.04 | I49: 0.04 | J49: 0.058 | K49: 0.105 | L49: 0.098 | M49: 0.09 | N49: 0.08033333333 | P49: =INDEX(E49:N49,1,control!$C$15) -> 0.098 | Q49: S2_AL_Colbert | R49: 44
B50: 45 | C50: AL | D50: Conecuh, AL | E50: 0.078 | F50: 0.076 | G50: 0.053 | H50: 0.049 | I50: 0.055 | J50: 0.083 | K50: 0.181 | L50: 0.163 | M50: 0.148 | N50: 0.1213333333 | P50: =INDEX(E50:N50,1,control!$C$15) -> 0.163 | Q50: S2_AL_Conecuh | R50: 45
B51: 46 | C51: AL | D51: Coosa, AL | E51: 0.074 | F51: 0.063 | G51: 0.043 | H51: 0.048 | I51: 0.05 | J51: 0.073 | K51: 0.145 | L51: 0.128 | M51: 0.106 | N51: 0.09016666667 | P51: =INDEX(E51:N51,1,control!$C$15) -> 0.128 | Q51: S2_AL_Coosa | R51: 46
B52: 47 | C52: AL | D52: Covington, AL | E52: 0.063 | F52: 0.06 | G52: 0.038 | H52: 0.033 | I52: 0.033 | J52: 0.053 | K52: 0.097 | L52: 0.091 | M52: 0.089 | N52: 0.079 | P52: =INDEX(E52:N52,1,control!$C$15) -> 0.091 | Q52: S2_AL_Covington | R52: 47
B53: 48 | C53: AL | D53: Crenshaw, AL | E53: 0.062 | F53: 0.061 | G53: 0.042 | H53: 0.034 | I53: 0.037 | J53: 0.049 | K53: 0.094 | L53: 0.087 | M53: 0.087 | N53: 0.0735 | P53: =INDEX(E53:N53,1,control!$C$15) -> 0.087 | Q53: S2_AL_Crenshaw | R53: 48
B54: 49 | C54: AL | D54: Cullman, AL | E54: 0.053 | F54: 0.046 | G54: 0.034 | H54: 0.029 | I54: 0.029 | J54: 0.043 | K54: 0.092 | L54: 0.087 | M54: 0.081 | N54: 0.06833333333 | P54: =INDEX(E54:N54,1,control!$C$15) -> 0.087 | Q54: S2_AL_Cullman | R54: 49
B55: 50 | C55: AL | D55: Dale, AL | E55: 0.048 | F55: 0.048 | G55: 0.038 | H55: 0.04 | I55: 0.034 | J55: 0.048 | K55: 0.087 | L55: 0.085 | M55: 0.083 | N55: 0.0745 | P55: =INDEX(E55:N55,1,control!$C$15) -> 0.085 | Q55: S2_AL_Dale | R55: 50
B56: 51 | C56: AL | D56: Dallas, AL | E56: 0.103 | F56: 0.09 | G56: 0.073 | H56: 0.071 | I56: 0.072 | J56: 0.099 | K56: 0.192 | L56: 0.174 | M56: 0.162 | N56: 0.1391666667 | P56: =INDEX(E56:N56,1,control!$C$15) -> 0.174 | Q56: S2_AL_Dallas | R56: 51
B57: 52 | C57: AL | D57: DeKalb, AL | E57: 0.052 | F57: 0.051 | G57: 0.043 | H57: 0.036 | I57: 0.037 | J57: 0.052 | K57: 0.129 | L57: 0.116 | M57: 0.112 | N57: 0.09083333333 | P57: =INDEX(E57:N57,1,control!$C$15) -> 0.116 | Q57: S2_AL_DeKalb | R57: 52
B58: 53 | C58: AL | D58: Elmore, AL | E58: 0.046 | F58: 0.043 | G58: 0.032 | H58: 0.029 | I58: 0.028 | J58: 0.045 | K58: 0.085 | L58: 0.085 | M58: 0.083 | N58: 0.07233333333 | P58: =INDEX(E58:N58,1,control!$C$15) -> 0.085 | Q58: S2_AL_Elmore | R58: 53
B59: =B58+1 -> 54 | C59: AL | D59: Escambia, AL | E59: 0.078 | F59: 0.068 | G59: 0.047 | H59: 0.043 | I59: 0.046 | J59: 0.067 | K59: 0.122 | L59: 0.111 | M59: 0.105 | N59: 0.09166666667 | P59: =INDEX(E59:N59,1,control!$C$15) -> 0.111 | Q59: S2_AL_Escambia | R59: 54
B60: 55 | C60: AL | D60: Etowah, AL | E60: 0.059 | F60: 0.057 | G60: 0.04 | H60: 0.036 | I60: 0.038 | J60: 0.053 | K60: 0.103 | L60: 0.095 | M60: 0.091 | N60: 0.07583333333 | P60: =INDEX(E60:N60,1,control!$C$15) -> 0.095 | Q60: S2_AL_Etowah | R60: 55
B61: 56 | C61: AL | D61: Fayette, AL | E61: 0.063 | F61: 0.062 | G61: 0.038 | H61: 0.037 | I61: 0.04 | J61: 0.064 | K61: 0.127 | L61: 0.117 | M61: 0.104 | N61: 0.08533333333 | P61: =INDEX(E61:N61,1,control!$C$15) -> 0.117 | Q61: S2_AL_Fayette | R61: 56
B62: 57 | C62: AL | D62: Franklin, AL | E62: 0.087 | F62: 0.062 | G62: 0.045 | H62: 0.04 | I62: 0.04 | J62: 0.066 | K62: 0.121 | L62: 0.102 | M62: 0.094 | N62: 0.08366666667 | P62: =INDEX(E62:N62,1,control!$C$15) -> 0.102 | Q62: S2_AL_Franklin | R62: 57
B63: 58 | C63: AL | D63: Geneva, AL | E63: 0.051 | F63: 0.044 | G63: 0.033 | H63: 0.032 | I63: 0.03 | J63: 0.049 | K63: 0.097 | L63: 0.089 | M63: 0.083 | N63: 0.072 | P63: =INDEX(E63:N63,1,control!$C$15) -> 0.089 | Q63: S2_AL_Geneva | R63: 58
B64: 59 | C64: AL | D64: Greene, AL | E64: 0.077 | F64: 0.078 | G64: 0.057 | H64: 0.048 | I64: 0.055 | J64: 0.076 | K64: 0.138 | L64: 0.173 | M64: 0.142 | N64: 0.1176666667 | P64: =INDEX(E64:N64,1,control!$C$15) -> 0.173 | Q64: S2_AL_Greene | R64: 59
B65: 60 | C65: AL | D65: Hale, AL | E65: 0.077 | F65: 0.067 | G65: 0.046 | H65: 0.045 | I65: 0.046 | J65: 0.066 | K65: 0.129 | L65: 0.134 | M65: 0.12 | N65: 0.1001666667 | P65: =INDEX(E65:N65,1,control!$C$15) -> 0.134 | Q65: S2_AL_Hale | R65: 60
B66: 61 | C66: AL | D66: Henry, AL | E66: 0.052 | F66: 0.05 | G66: 0.037 | H66: 0.035 | I66: 0.046 | J66: 0.068 | K66: 0.101 | L66: 0.094 | M66: 0.084 | N66: 0.0765 | P66: =INDEX(E66:N66,1,control!$C$15) -> 0.094 | Q66: S2_AL_Henry | R66: 61
B67: 62 | C67: AL | D67: Houston, AL | E67: 0.044 | F67: 0.042 | G67: 0.033 | H67: 0.029 | I67: 0.029 | J67: 0.043 | K67: 0.084 | L67: 0.084 | M67: 0.081 | N67: 0.0715 | P67: =INDEX(E67:N67,1,control!$C$15) -> 0.084 | Q67: S2_AL_Houston | R67: 62
B68: 63 | C68: AL | D68: Jackson, AL | E68: 0.064 | F68: 0.061 | G68: 0.043 | H68: 0.038 | I68: 0.039 | J68: 0.055 | K68: 0.115 | L68: 0.097 | M68: 0.087 | N68: 0.07516666667 | P68: =INDEX(E68:N68,1,control!$C$15) -> 0.097 | Q68: S2_AL_Jackson | R68: 63
B69: 64 | C69: AL | D69: Jefferson, AL | E69: 0.05 | F69: 0.047 | G69: 0.038 | H69: 0.034 | I69: 0.033 | J69: 0.048 | K69: 0.097 | L69: 0.094 | M69: 0.087 | N69: 0.07266666667 | P69: =INDEX(E69:N69,1,control!$C$15) -> 0.094 | Q69: S2_AL_Jefferson | R69: 64
B70: 65 | C70: AL | D70: Lamar, AL | E70: 0.08 | F70: 0.073 | G70: 0.048 | H70: 0.045 | I70: 0.054 | J70: 0.071 | K70: 0.145 | L70: 0.129 | M70: 0.099 | N70: 0.08066666667 | P70: =INDEX(E70:N70,1,control!$C$15) -> 0.129 | Q70: S2_AL_Lamar | R70: 65
B71: 66 | C71: AL | D71: Lauderdale, AL | E71: 0.066 | F71: 0.057 | G71: 0.044 | H71: 0.036 | I71: 0.037 | J71: 0.051 | K71: 0.096 | L71: 0.088 | M71: 0.083 | N71: 0.07033333333 | P71: =INDEX(E71:N71,1,control!$C$15) -> 0.088 | Q71: S2_AL_Lauderdale | R71: 66
B72: 67 | C72: AL | D72: Lawrence, AL | E72: 0.061 | F72: 0.057 | G72: 0.048 | H72: 0.041 | I72: 0.035 | J72: 0.058 | K72: 0.123 | L72: 0.11 | M72: 0.101 | N72: 0.0865 | P72: =INDEX(E72:N72,1,control!$C$15) -> 0.11 | Q72: S2_AL_Lawrence | R72: 67
B73: 68 | C73: AL | D73: Lee, AL | E73: 0.042 | F73: 0.04 | G73: 0.032 | H73: 0.029 | I73: 0.031 | J73: 0.046 | K73: 0.085 | L73: 0.081 | M73: 0.074 | N73: 0.06633333333 | P73: =INDEX(E73:N73,1,control!$C$15) -> 0.081 | Q73: S2_AL_Lee | R73: 68
B74: 69 | C74: AL | D74: Limestone, AL | E74: 0.05 | F74: 0.046 | G74: 0.038 | H74: 0.031 | I74: 0.029 | J74: 0.042 | K74: 0.088 | L74: 0.082 | M74: 0.076 | N74: 0.06666666667 | P74: =INDEX(E74:N74,1,control!$C$15) -> 0.082 | Q74: S2_AL_Limestone | R74: 69
B75: 70 | C75: AL | D75: Lowndes, AL | E75: 0.084 | F75: 0.083 | G75: 0.069 | H75: 0.066 | I75: 0.065 | J75: 0.097 | K75: 0.176 | L75: 0.163 | M75: 0.166 | N75: 0.1545 | P75: =INDEX(E75:N75,1,control!$C$15) -> 0.163 | Q75: S2_AL_Lowndes | R75: 70
B76: 71 | C76: AL | D76: Macon, AL | E76: 0.064 | F76: 0.062 | G76: 0.05 | H76: 0.046 | I76: 0.047 | J76: 0.066 | K76: 0.11 | L76: 0.128 | M76: 0.125 | N76: 0.1045 | P76: =INDEX(E76:N76,1,control!$C$15) -> 0.128 | Q76: S2_AL_Macon | R76: 71
B77: 72 | C77: AL | D77: Madison, AL | E77: 0.043 | F77: 0.041 | G77: 0.03 | H77: 0.028 | I77: 0.026 | J77: 0.037 | K77: 0.072 | L77: 0.074 | M77: 0.076 | N77: 0.06666666667 | P77: =INDEX(E77:N77,1,control!$C$15) -> 0.074 | Q77: S2_AL_Madison | R77: 72
B78: 73 | C78: AL | D78: Marengo, AL | E78: 0.057 | F78: 0.055 | G78: 0.049 | H78: 0.04 | I78: 0.046 | J78: 0.066 | K78: 0.128 | L78: 0.123 | M78: 0.118 | N78: 0.098 | P78: =INDEX(E78:N78,1,control!$C$15) -> 0.123 | Q78: S2_AL_Marengo | R78: 73
B79: 74 | C79: AL | D79: Marion, AL | E79: 0.065 | F79: 0.057 | G79: 0.038 | H79: 0.038 | I79: 0.045 | J79: 0.071 | K79: 0.15 | L79: 0.133 | M79: 0.113 | N79: 0.09533333333 | P79: =INDEX(E79:N79,1,control!$C$15) -> 0.133 | Q79: S2_AL_Marion | R79: 74
B80: 75 | C80: AL | D80: Marshall, AL | E80: 0.051 | F80: 0.043 | G80: 0.033 | H80: 0.03 | I80: 0.029 | J80: 0.042 | K80: 0.091 | L80: 0.086 | M80: 0.086 | N80: 0.07433333333 | P80: =INDEX(E80:N80,1,control!$C$15) -> 0.086 | Q80: S2_AL_Marshall | R80: 75
B81: 76 | C81: AL | D81: Mobile, AL | E81: 0.063 | F81: 0.058 | G81: 0.042 | H81: 0.036 | I81: 0.034 | J81: 0.05 | K81: 0.102 | L81: 0.102 | M81: 0.101 | N81: 0.08766666667 | P81: =INDEX(E81:N81,1,control!$C$15) -> 0.102 | Q81: S2_AL_Mobile | R81: 76
B82: 77 | C82: AL | D82: Monroe, AL | E82: 0.076 | F82: 0.067 | G82: 0.053 | H82: 0.052 | I82: 0.055 | J82: 0.091 | K82: 0.177 | L82: 0.172 | M82: 0.153 | N82: 0.1278333333 | P82: =INDEX(E82:N82,1,control!$C$15) -> 0.172 | Q82: S2_AL_Monroe | R82: 77
B83: 78 | C83: AL | D83: Montgomery, AL | E83: 0.053 | F83: 0.051 | G83: 0.039 | H83: 0.036 | I83: 0.035 | J83: 0.052 | K83: 0.094 | L83: 0.092 | M83: 0.091 | N83: 0.07883333333 | P83: =INDEX(E83:N83,1,control!$C$15) -> 0.092 | Q83: S2_AL_Montgomery | R83: 78
B84: 79 | C84: AL | D84: Morgan, AL | E84: 0.059 | F84: 0.054 | G84: 0.038 | H84: 0.035 | I84: 0.03 | J84: 0.046 | K84: 0.097 | L84: 0.096 | M84: 0.087 | N84: 0.0755 | P84: =INDEX(E84:N84,1,control!$C$15) -> 0.096 | Q84: S2_AL_Morgan | R84: 79
B85: 80 | C85: AL | D85: Perry, AL | E85: 0.097 | F85: 0.091 | G85: 0.078 | H85: 0.073 | I85: 0.073 | J85: 0.101 | K85: 0.181 | L85: 0.161 | M85: 0.164 | N85: 0.1321666667 | P85: =INDEX(E85:N85,1,control!$C$15) -> 0.161 | Q85: S2_AL_Perry | R85: 80
B86: 81 | C86: AL | D86: Pickens, AL | E86: 0.074 | F86: 0.068 | G86: 0.046 | H86: 0.043 | I86: 0.043 | J86: 0.063 | K86: 0.124 | L86: 0.114 | M86: 0.107 | N86: 0.09433333333 | P86: =INDEX(E86:N86,1,control!$C$15) -> 0.114 | Q86: S2_AL_Pickens | R86: 81
B87: 82 | C87: AL | D87: Pike, AL | E87: 0.053 | F87: 0.048 | G87: 0.035 | H87: 0.035 | I87: 0.035 | J87: 0.043 | K87: 0.086 | L87: 0.082 | M87: 0.078 | N87: 0.07016666667 | P87: =INDEX(E87:N87,1,control!$C$15) -> 0.082 | Q87: S2_AL_Pike | R87: 82
B88: 83 | C88: AL | D88: Randolph, AL | E88: 0.068 | F88: 0.06 | G88: 0.053 | H88: 0.046 | I88: 0.044 | J88: 0.065 | K88: 0.135 | L88: 0.126 | M88: 0.11 | N88: 0.0925 | P88: =INDEX(E88:N88,1,control!$C$15) -> 0.126 | Q88: S2_AL_Randolph | R88: 83
B89: 84 | C89: AL | D89: Russell, AL | E89: 0.068 | F89: 0.058 | G89: 0.051 | H89: 0.051 | I89: 0.052 | J89: 0.071 | K89: 0.111 | L89: 0.103 | M89: 0.101 | N89: 0.09316666667 | P89: =INDEX(E89:N89,1,control!$C$15) -> 0.103 | Q89: S2_AL_Russell | R89: 84
B90: 85 | C90: AL | D90: Shelby, AL | E90: 0.032 | F90: 0.03 | G90: 0.026 | H90: 0.023 | I90: 0.022 | J90: 0.033 | K90: 0.07 | L90: 0.069 | M90: 0.063 | N90: 0.054 | P90: =INDEX(E90:N90,1,control!$C$15) -> 0.069 | Q90: S2_AL_Shelby | R90: 85
B91: 86 | C91: AL | D91: St. Clair, AL | E91: 0.047 | F91: 0.044 | G91: 0.034 | H91: 0.03 | I91: 0.029 | J91: 0.044 | K91: 0.098 | L91: 0.091 | M91: 0.083 | N91: 0.07066666667 | P91: =INDEX(E91:N91,1,control!$C$15) -> 0.091 | Q91: S2_AL_St._Clair | R91: 86
B92: 87 | C92: AL | D92: Sumter, AL | E92: 0.092 | F92: 0.085 | G92: 0.062 | H92: 0.059 | I92: 0.056 | J92: 0.078 | K92: 0.135 | L92: 0.145 | M92: 0.145 | N92: 0.1225 | P92: =INDEX(E92:N92,1,control!$C$15) -> 0.145 | Q92: S2_AL_Sumter | R92: 87
B93: 88 | C93: AL | D93: Talladega, AL | E93: 0.07 | F93: 0.06 | G93: 0.041 | H93: 0.045 | I93: 0.045 | J93: 0.064 | K93: 0.13 | L93: 0.116 | M93: 0.103 | N93: 0.08616666667 | P93: =INDEX(E93:N93,1,control!$C$15) -> 0.116 | Q93: S2_AL_Talladega | R93: 88
B94: 89 | C94: AL | D94: Tallapoosa, AL | E94: 0.063 | F94: 0.055 | G94: 0.038 | H94: 0.044 | I94: 0.046 | J94: 0.064 | K94: 0.123 | L94: 0.129 | M94: 0.115 | N94: 0.0945 | P94: =INDEX(E94:N94,1,control!$C$15) -> 0.129 | Q94: S2_AL_Tallapoosa | R94: 89
B95: 90 | C95: AL | D95: Tuscaloosa, AL | E95: 0.044 | F95: 0.042 | G95: 0.032 | H95: 0.028 | I95: 0.028 | J95: 0.042 | K95: 0.091 | L95: 0.085 | M95: 0.082 | N95: 0.07216666667 | P95: =INDEX(E95:N95,1,control!$C$15) -> 0.085 | Q95: S2_AL_Tuscaloosa | R95: 90
B96: 91 | C96: AL | D96: Walker, AL | E96: 0.059 | F96: 0.054 | G96: 0.038 | H96: 0.039 | I96: 0.037 | J96: 0.051 | K96: 0.105 | L96: 0.107 | M96: 0.095 | N96: 0.08116666667 | P96: =INDEX(E96:N96,1,control!$C$15) -> 0.107 | Q96: S2_AL_Walker | R96: 91
B97: 92 | C97: AL | D97: Washington, AL | E97: 0.095 | F97: 0.085 | G97: 0.053 | H97: 0.05 | I97: 0.051 | J97: 0.075 | K97: 0.136 | L97: 0.133 | M97: 0.14 | N97: 0.1176666667 | P97: =INDEX(E97:N97,1,control!$C$15) -> 0.133 | Q97: S2_AL_Washington | R97: 92
B98: 93 | C98: AL | D98: Wilcox, AL | E98: 0.113 | F98: 0.108 | G98: 0.079 | H98: 0.075 | I98: 0.084 | J98: 0.125 | K98: 0.239 | L98: 0.213 | M98: 0.193 | N98: 0.1675 | P98: =INDEX(E98:N98,1,control!$C$15) -> 0.213 | Q98: S2_AL_Wilcox | R98: 93
B99: 94 | C99: AL | D99: Winston, AL | E99: 0.086 | F99: 0.065 | G99: 0.043 | H99: 0.043 | I99: 0.048 | J99: 0.077 | K99: 0.161 | L99: 0.151 | M99: 0.134 | N99: 0.1023333333 | P99: =INDEX(E99:N99,1,control!$C$15) -> 0.151 | Q99: S2_AL_Winston | R99: 94
B100: 95 | C100: AR | D100: Arkansas, AR | E100: 0.055 | F100: 0.059 | G100: 0.069 | H100: 0.077 | I100: 0.087 | J100: 0.096 | K100: 0.151 | L100: 0.169 | M100: 0.108 | N100: 0.0805 | P100: =INDEX(E100:N100,1,control!$C$15) -> 0.169 | Q100: S2_AR_Arkansas | R100: 95
B101: 96 | C101: AR | D101: Ashley, AR | E101: 0.093 | F101: 0.093 | G101: 0.082 | H101: 0.076 | I101: 0.081 | J101: 0.075 | K101: 0.101 | L101: 0.102 | M101: 0.112 | N101: 0.1238333333 | P101: =INDEX(E101:N101,1,control!$C$15) -> 0.102 | Q101: S2_AR_Ashley | R101: 96
B102: 97 | C102: AR | D102: Baxter, AR | E102: 0.066 | F102: 0.061 | G102: 0.055 | H102: 0.054 | I102: 0.054 | J102: 0.059 | K102: 0.09 | L102: 0.089 | M102: 0.086 | N102: 0.08233333333 | P102: =INDEX(E102:N102,1,control!$C$15) -> 0.089 | Q102: S2_AR_Baxter | R102: 97
B103: 98 | C103: AR | D103: Benton, AR | E103: 0.035 | F103: 0.036 | G103: 0.032 | H103: 0.034 | I103: 0.038 | J103: 0.041 | K103: 0.062 | L103: 0.064 | M103: 0.063 | N103: 0.0595 | P103: =INDEX(E103:N103,1,control!$C$15) -> 0.064 | Q103: S2_AR_Benton | R103: 98
B104: 99 | C104: AR | D104: Boone, AR | E104: 0.057 | F104: 0.058 | G104: 0.05 | H104: 0.05 | I104: 0.051 | J104: 0.054 | K104: 0.072 | L104: 0.074 | M104: 0.074 | N104: 0.07616666667 | P104: =INDEX(E104:N104,1,control!$C$15) -> 0.074 | Q104: S2_AR_Boone | R104: 99
B105: 100 | C105: AR | D105: Bradley, AR | E105: 0.072 | F105: 0.076 | G105: 0.077 | H105: 0.071 | I105: 0.061 | J105: 0.071 | K105: 0.094 | L105: 0.098 | M105: 0.111 | N105: 0.1086666667 | P105: =INDEX(E105:N105,1,control!$C$15) -> 0.098 | Q105: S2_AR_Bradley | R105: 100
B106: 101 | C106: AR | D106: Calhoun, AR | E106: 0.078 | F106: 0.067 | G106: 0.067 | H106: 0.071 | I106: 0.067 | J106: 0.061 | K106: 0.081 | L106: 0.091 | M106: 0.094 | N106: 0.09383333333 | P106: =INDEX(E106:N106,1,control!$C$15) -> 0.091 | Q106: S2_AR_Calhoun | R106: 101
B107: 102 | C107: AR | D107: Carroll, AR | E107: 0.048 | F107: 0.048 | G107: 0.045 | H107: 0.044 | I107: 0.043 | J107: 0.044 | K107: 0.059 | L107: 0.066 | M107: 0.063 | N107: 0.06033333333 | P107: =INDEX(E107:N107,1,control!$C$15) -> 0.066 | Q107: S2_AR_Carroll | R107: 102
B108: 103 | C108: AR | D108: Chicot, AR | E108: 0.104 | F108: 0.108 | G108: 0.098 | H108: 0.085 | I108: 0.083 | J108: 0.081 | K108: 0.107 | L108: 0.115 | M108: 0.119 | N108: 0.1075 | P108: =INDEX(E108:N108,1,control!$C$15) -> 0.115 | Q108: S2_AR_Chicot | R108: 103
B109: 104 | C109: AR | D109: Clark, AR | E109: 0.063 | F109: 0.061 | G109: 0.06 | H109: 0.057 | I109: 0.056 | J109: 0.058 | K109: 0.078 | L109: 0.077 | M109: 0.095 | N109: 0.09916666667 | P109: =INDEX(E109:N109,1,control!$C$15) -> 0.077 | Q109: S2_AR_Clark | R109: 104
B110: 105 | C110: AR | D110: Clay, AR | E110: 0.08 | F110: 0.08 | G110: 0.082 | H110: 0.083 | I110: 0.093 | J110: 0.079 | K110: 0.109 | L110: 0.125 | M110: 0.137 | N110: 0.134 | P110: =INDEX(E110:N110,1,control!$C$15) -> 0.125 | Q110: S2_AR_Clay | R110: 105
B111: 106 | C111: AR | D111: Cleburne, AR | E111: 0.056 | F111: 0.053 | G111: 0.048 | H111: 0.051 | I111: 0.061 | J111: 0.055 | K111: 0.072 | L111: 0.074 | M111: 0.079 | N111: 0.07416666667 | P111: =INDEX(E111:N111,1,control!$C$15) -> 0.074 | Q111: S2_AR_Cleburne | R111: 106
B112: 107 | C112: AR | D112: Cleveland, AR | E112: 0.061 | F112: 0.066 | G112: 0.057 | H112: 0.062 | I112: 0.057 | J112: 0.058 | K112: 0.078 | L112: 0.08 | M112: 0.079 | N112: 0.0735 | P112: =INDEX(E112:N112,1,control!$C$15) -> 0.08 | Q112: S2_AR_Cleveland | R112: 107
B113: 108 | C113: AR | D113: Columbia, AR | E113: 0.067 | F113: 0.064 | G113: 0.062 | H113: 0.062 | I113: 0.065 | J113: 0.068 | K113: 0.094 | L113: 0.092 | M113: 0.094 | N113: 0.089 | P113: =INDEX(E113:N113,1,control!$C$15) -> 0.092 | Q113: S2_AR_Columbia | R113: 108
B114: 109 | C114: AR | D114: Conway, AR | E114: 0.062 | F114: 0.057 | G114: 0.05 | H114: 0.05 | I114: 0.049 | J114: 0.054 | K114: 0.072 | L114: 0.084 | M114: 0.083 | N114: 0.077 | P114: =INDEX(E114:N114,1,control!$C$15) -> 0.084 | Q114: S2_AR_Conway | R114: 109
B115: 110 | C115: AR | D115: Craighead, AR | E115: 0.055 | F115: 0.054 | G115: 0.047 | H115: 0.049 | I115: 0.05 | J115: 0.048 | K115: 0.068 | L115: 0.073 | M115: 0.073 | N115: 0.071 | P115: =INDEX(E115:N115,1,control!$C$15) -> 0.073 | Q115: S2_AR_Craighead | R115: 110
B116: 111 | C116: AR | D116: Crawford, AR | E116: 0.053 | F116: 0.051 | G116: 0.043 | H116: 0.046 | I116: 0.049 | J116: 0.048 | K116: 0.075 | L116: 0.078 | M116: 0.085 | N116: 0.08083333333 | P116: =INDEX(E116:N116,1,control!$C$15) -> 0.078 | Q116: S2_AR_Crawford | R116: 111
B117: 112 | C117: AR | D117: Crittenden, AR | E117: 0.067 | F117: 0.068 | G117: 0.064 | H117: 0.069 | I117: 0.065 | J117: 0.078 | K117: 0.105 | L117: 0.114 | M117: 0.126 | N117: 0.1166666667 | P117: =INDEX(E117:N117,1,control!$C$15) -> 0.114 | Q117: S2_AR_Crittenden | R117: 112
B118: 113 | C118: AR | D118: Cross, AR | E118: 0.074 | F118: 0.08 | G118: 0.074 | H118: 0.074 | I118: 0.074 | J118: 0.067 | K118: 0.08 | L118: 0.086 | M118: 0.085 | N118: 0.0815 | P118: =INDEX(E118:N118,1,control!$C$15) -> 0.086 | Q118: S2_AR_Cross | R118: 113
B119: 114 | C119: AR | D119: Dallas, AR | E119: 0.078 | F119: 0.074 | G119: 0.069 | H119: 0.067 | I119: 0.07 | J119: 0.071 | K119: 0.098 | L119: 0.111 | M119: 0.111 | N119: 0.1061666667 | P119: =INDEX(E119:N119,1,control!$C$15) -> 0.111 | Q119: S2_AR_Dallas | R119: 114
B120: 115 | C120: AR | D120: Desha, AR | E120: 0.088 | F120: 0.089 | G120: 0.085 | H120: 0.093 | I120: 0.099 | J120: 0.086 | K120: 0.109 | L120: 0.118 | M120: 0.118 | N120: 0.111 | P120: =INDEX(E120:N120,1,control!$C$15) -> 0.118 | Q120: S2_AR_Desha | R120: 115
B121: 116 | C121: AR | D121: Drew, AR | E121: 0.078 | F121: 0.078 | G121: 0.083 | H121: 0.081 | I121: 0.074 | J121: 0.078 | K121: 0.106 | L121: 0.109 | M121: 0.117 | N121: 0.1128333333 | P121: =INDEX(E121:N121,1,control!$C$15) -> 0.109 | Q121: S2_AR_Drew | R121: 116
B122: 117 | C122: AR | D122: Faulkner, AR | E122: 0.054 | F122: 0.049 | G122: 0.044 | H122: 0.045 | I122: 0.044 | J122: 0.047 | K122: 0.067 | L122: 0.072 | M122: 0.07 | N122: 0.06833333333 | P122: =INDEX(E122:N122,1,control!$C$15) -> 0.072 | Q122: S2_AR_Faulkner | R122: 117
B123: =B122+1 -> 118 | C123: AR | D123: Franklin, AR | E123: 0.048 | F123: 0.047 | G123: 0.042 | H123: 0.044 | I123: 0.045 | J123: 0.044 | K123: 0.07 | L123: 0.07 | M123: 0.075 | N123: 0.074 | P123: =INDEX(E123:N123,1,control!$C$15) -> 0.07 | Q123: S2_AR_Franklin | R123: 118
B124: 119 | C124: AR | D124: Fulton, AR | E124: 0.062 | F124: 0.06 | G124: 0.052 | H124: 0.052 | I124: 0.05 | J124: 0.051 | K124: 0.072 | L124: 0.075 | M124: 0.074 | N124: 0.07133333333 | P124: =INDEX(E124:N124,1,control!$C$15) -> 0.075 | Q124: S2_AR_Fulton | R124: 119
B125: 120 | C125: AR | D125: Garland, AR | E125: 0.063 | F125: 0.061 | G125: 0.055 | H125: 0.053 | I125: 0.055 | J125: 0.055 | K125: 0.073 | L125: 0.081 | M125: 0.083 | N125: 0.0795 | P125: =INDEX(E125:N125,1,control!$C$15) -> 0.081 | Q125: S2_AR_Garland | R125: 120
B126: 121 | C126: AR | D126: Grant, AR | E126: 0.055 | F126: 0.054 | G126: 0.048 | H126: 0.05 | I126: 0.05 | J126: 0.051 | K126: 0.068 | L126: 0.07 | M126: 0.072 | N126: 0.06933333333 | P126: =INDEX(E126:N126,1,control!$C$15) -> 0.07 | Q126: S2_AR_Grant | R126: 121
B127: 122 | C127: AR | D127: Greene, AR | E127: 0.066 | F127: 0.061 | G127: 0.057 | H127: 0.058 | I127: 0.065 | J127: 0.065 | K127: 0.097 | L127: 0.102 | M127: 0.1 | N127: 0.09416666667 | P127: =INDEX(E127:N127,1,control!$C$15) -> 0.102 | Q127: S2_AR_Greene | R127: 122
B128: 123 | C128: AR | D128: Hempstead, AR | E128: 0.053 | F128: 0.058 | G128: 0.056 | H128: 0.055 | I128: 0.059 | J128: 0.057 | K128: 0.079 | L128: 0.093 | M128: 0.085 | N128: 0.07416666667 | P128: =INDEX(E128:N128,1,control!$C$15) -> 0.093 | Q128: S2_AR_Hempstead | R128: 123
B129: 124 | C129: AR | D129: Hot Spring, AR | E129: 0.066 | F129: 0.06 | G129: 0.052 | H129: 0.053 | I129: 0.053 | J129: 0.065 | K129: 0.083 | L129: 0.078 | M129: 0.076 | N129: 0.06883333333 | P129: =INDEX(E129:N129,1,control!$C$15) -> 0.078 | Q129: S2_AR_Hot_Spring | R129: 124
B130: 125 | C130: AR | D130: Howard, AR | E130: 0.06 | F130: 0.06 | G130: 0.054 | H130: 0.055 | I130: 0.054 | J130: 0.054 | K130: 0.077 | L130: 0.083 | M130: 0.08 | N130: 0.071 | P130: =INDEX(E130:N130,1,control!$C$15) -> 0.083 | Q130: S2_AR_Howard | R130: 125
B131: 126 | C131: AR | D131: Independence, AR | E131: 0.064 | F131: 0.062 | G131: 0.06 | H131: 0.056 | I131: 0.062 | J131: 0.069 | K131: 0.084 | L131: 0.085 | M131: 0.088 | N131: 0.0865 | P131: =INDEX(E131:N131,1,control!$C$15) -> 0.085 | Q131: S2_AR_Independence | R131: 126
B132: 127 | C132: AR | D132: Izard, AR | E132: 0.078 | F132: 0.068 | G132: 0.063 | H132: 0.063 | I132: 0.059 | J132: 0.066 | K132: 0.088 | L132: 0.096 | M132: 0.094 | N132: 0.08616666667 | P132: =INDEX(E132:N132,1,control!$C$15) -> 0.096 | Q132: S2_AR_Izard | R132: 127
B133: 128 | C133: AR | D133: Jackson, AR | E133: 0.089 | F133: 0.086 | G133: 0.081 | H133: 0.078 | I133: 0.075 | J133: 0.076 | K133: 0.105 | L133: 0.109 | M133: 0.106 | N133: 0.1 | P133: =INDEX(E133:N133,1,control!$C$15) -> 0.109 | Q133: S2_AR_Jackson | R133: 128
B134: 129 | C134: AR | D134: Jefferson, AR | E134: 0.079 | F134: 0.077 | G134: 0.074 | H134: 0.08 | I134: 0.075 | J134: 0.075 | K134: 0.095 | L134: 0.099 | M134: 0.106 | N134: 0.09783333333 | P134: =INDEX(E134:N134,1,control!$C$15) -> 0.099 | Q134: S2_AR_Jefferson | R134: 129
B135: 130 | C135: AR | D135: Johnson, AR | E135: 0.054 | F135: 0.053 | G135: 0.048 | H135: 0.052 | I135: 0.048 | J135: 0.046 | K135: 0.069 | L135: 0.076 | M135: 0.072 | N135: 0.06833333333 | P135: =INDEX(E135:N135,1,control!$C$15) -> 0.076 | Q135: S2_AR_Johnson | R135: 130
B136: 131 | C136: AR | D136: Lafayette, AR | E136: 0.059 | F136: 0.071 | G136: 0.073 | H136: 0.072 | I136: 0.075 | J136: 0.07 | K136: 0.092 | L136: 0.1 | M136: 0.099 | N136: 0.09533333333 | P136: =INDEX(E136:N136,1,control!$C$15) -> 0.1 | Q136: S2_AR_Lafayette | R136: 131
B137: 132 | C137: AR | D137: Lawrence, AR | E137: 0.084 | F137: 0.079 | G137: 0.073 | H137: 0.069 | I137: 0.068 | J137: 0.07 | K137: 0.088 | L137: 0.093 | M137: 0.098 | N137: 0.09483333333 | P137: =INDEX(E137:N137,1,control!$C$15) -> 0.093 | Q137: S2_AR_Lawrence | R137: 132
B138: 133 | C138: AR | D138: Lee, AR | E138: 0.114 | F138: 0.111 | G138: 0.103 | H138: 0.094 | I138: 0.094 | J138: 0.084 | K138: 0.088 | L138: 0.101 | M138: 0.113 | N138: 0.1148333333 | P138: =INDEX(E138:N138,1,control!$C$15) -> 0.101 | Q138: S2_AR_Lee | R138: 133
B139: 134 | C139: AR | D139: Lincoln, AR | E139: 0.08 | F139: 0.076 | G139: 0.074 | H139: 0.081 | I139: 0.078 | J139: 0.08 | K139: 0.095 | L139: 0.092 | M139: 0.094 | N139: 0.09616666667 | P139: =INDEX(E139:N139,1,control!$C$15) -> 0.092 | Q139: S2_AR_Lincoln | R139: 134
B140: 135 | C140: AR | D140: Little River, AR | E140: 0.048 | F140: 0.049 | G140: 0.046 | H140: 0.046 | I140: 0.042 | J140: 0.039 | K140: 0.058 | L140: 0.076 | M140: 0.077 | N140: 0.07233333333 | P140: =INDEX(E140:N140,1,control!$C$15) -> 0.076 | Q140: S2_AR_Little_River | R140: 135
B141: 136 | C141: AR | D141: Logan, AR | E141: 0.056 | F141: 0.053 | G141: 0.048 | H141: 0.049 | I141: 0.05 | J141: 0.064 | K141: 0.089 | L141: 0.082 | M141: 0.084 | N141: 0.08033333333 | P141: =INDEX(E141:N141,1,control!$C$15) -> 0.082 | Q141: S2_AR_Logan | R141: 136
B142: 137 | C142: AR | D142: Lonoke, AR | E142: 0.048 | F142: 0.046 | G142: 0.044 | H142: 0.043 | I142: 0.044 | J142: 0.044 | K142: 0.06 | L142: 0.068 | M142: 0.068 | N142: 0.06366666667 | P142: =INDEX(E142:N142,1,control!$C$15) -> 0.068 | Q142: S2_AR_Lonoke | R142: 137
B143: 138 | C143: AR | D143: Madison, AR | E143: 0.039 | F143: 0.041 | G143: 0.036 | H143: 0.037 | I143: 0.041 | J143: 0.043 | K143: 0.065 | L143: 0.067 | M143: 0.062 | N143: 0.0565 | P143: =INDEX(E143:N143,1,control!$C$15) -> 0.067 | Q143: S2_AR_Madison | R143: 138
B144: 139 | C144: AR | D144: Marion, AR | E144: 0.064 | F144: 0.059 | G144: 0.051 | H144: 0.053 | I144: 0.054 | J144: 0.062 | K144: 0.114 | L144: 0.102 | M144: 0.094 | N144: 0.08733333333 | P144: =INDEX(E144:N144,1,control!$C$15) -> 0.102 | Q144: S2_AR_Marion | R144: 139
B145: 140 | C145: AR | D145: Miller, AR | E145: 0.05 | F145: 0.048 | G145: 0.047 | H145: 0.047 | I145: 0.045 | J145: 0.04 | K145: 0.054 | L145: 0.057 | M145: 0.07 | N145: 0.06216666667 | P145: =INDEX(E145:N145,1,control!$C$15) -> 0.057 | Q145: S2_AR_Miller | R145: 140
B146: 141 | C146: AR | D146: Mississippi, AR | E146: 0.118 | F146: 0.099 | G146: 0.085 | H146: 0.08 | I146: 0.073 | J146: 0.075 | K146: 0.134 | L146: 0.118 | M146: 0.111 | N146: 0.1023333333 | P146: =INDEX(E146:N146,1,control!$C$15) -> 0.118 | Q146: S2_AR_Mississippi | R146: 141
B147: 142 | C147: AR | D147: Monroe, AR | E147: 0.074 | F147: 0.07 | G147: 0.065 | H147: 0.073 | I147: 0.067 | J147: 0.063 | K147: 0.078 | L147: 0.087 | M147: 0.09 | N147: 0.08683333333 | P147: =INDEX(E147:N147,1,control!$C$15) -> 0.087 | Q147: S2_AR_Monroe | R147: 142
B148: 143 | C148: AR | D148: Montgomery, AR | E148: 0.055 | F148: 0.054 | G148: 0.048 | H148: 0.048 | I148: 0.053 | J148: 0.056 | K148: 0.068 | L148: 0.081 | M148: 0.083 | N148: 0.07866666667 | P148: =INDEX(E148:N148,1,control!$C$15) -> 0.081 | Q148: S2_AR_Montgomery | R148: 143
B149: 144 | C149: AR | D149: Nevada, AR | E149: 0.05 | F149: 0.06 | G149: 0.056 | H149: 0.056 | I149: 0.057 | J149: 0.067 | K149: 0.089 | L149: 0.093 | M149: 0.092 | N149: 0.07233333333 | P149: =INDEX(E149:N149,1,control!$C$15) -> 0.093 | Q149: S2_AR_Nevada | R149: 144
B150: 145 | C150: AR | D150: Newton, AR | E150: 0.057 | F150: 0.061 | G150: 0.05 | H150: 0.053 | I150: 0.051 | J150: 0.056 | K150: 0.077 | L150: 0.072 | M150: 0.078 | N150: 0.0755 | P150: =INDEX(E150:N150,1,control!$C$15) -> 0.072 | Q150: S2_AR_Newton | R150: 145
B151: 146 | C151: AR | D151: Ouachita, AR | E151: 0.078 | F151: 0.067 | G151: 0.069 | H151: 0.082 | I151: 0.073 | J151: 0.063 | K151: 0.077 | L151: 0.086 | M151: 0.094 | N151: 0.09766666667 | P151: =INDEX(E151:N151,1,control!$C$15) -> 0.086 | Q151: S2_AR_Ouachita | R151: 146
B152: 147 | C152: AR | D152: Perry, AR | E152: 0.068 | F152: 0.056 | G152: 0.05 | H152: 0.051 | I152: 0.048 | J152: 0.055 | K152: 0.076 | L152: 0.083 | M152: 0.086 | N152: 0.082 | P152: =INDEX(E152:N152,1,control!$C$15) -> 0.083 | Q152: S2_AR_Perry | R152: 147
B153: 148 | C153: AR | D153: Phillips, AR | E153: 0.087 | F153: 0.09 | G153: 0.089 | H153: 0.083 | I153: 0.073 | J153: 0.07 | K153: 0.091 | L153: 0.101 | M153: 0.114 | N153: 0.1108333333 | P153: =INDEX(E153:N153,1,control!$C$15) -> 0.101 | Q153: S2_AR_Phillips | R153: 148
B154: 149 | C154: AR | D154: Pike, AR | E154: 0.054 | F154: 0.054 | G154: 0.047 | H154: 0.051 | I154: 0.056 | J154: 0.06 | K154: 0.074 | L154: 0.087 | M154: 0.094 | N154: 0.08833333333 | P154: =INDEX(E154:N154,1,control!$C$15) -> 0.087 | Q154: S2_AR_Pike | R154: 149
B155: 150 | C155: AR | D155: Poinsett, AR | E155: 0.073 | F155: 0.063 | G155: 0.065 | H155: 0.068 | I155: 0.072 | J155: 0.063 | K155: 0.085 | L155: 0.091 | M155: 0.09 | N155: 0.08183333333 | P155: =INDEX(E155:N155,1,control!$C$15) -> 0.091 | Q155: S2_AR_Poinsett | R155: 150
B156: 151 | C156: AR | D156: Polk, AR | E156: 0.076 | F156: 0.059 | G156: 0.049 | H156: 0.049 | I156: 0.049 | J156: 0.051 | K156: 0.073 | L156: 0.077 | M156: 0.083 | N156: 0.07933333333 | P156: =INDEX(E156:N156,1,control!$C$15) -> 0.077 | Q156: S2_AR_Polk | R156: 151
B157: 152 | C157: AR | D157: Pope, AR | E157: 0.057 | F157: 0.053 | G157: 0.044 | H157: 0.048 | I157: 0.048 | J157: 0.048 | K157: 0.072 | L157: 0.078 | M157: 0.076 | N157: 0.0735 | P157: =INDEX(E157:N157,1,control!$C$15) -> 0.078 | Q157: S2_AR_Pope | R157: 152
B158: 153 | C158: AR | D158: Prairie, AR | E158: 0.052 | F158: 0.052 | G158: 0.058 | H158: 0.057 | I158: 0.057 | J158: 0.056 | K158: 0.076 | L158: 0.089 | M158: 0.082 | N158: 0.0755 | P158: =INDEX(E158:N158,1,control!$C$15) -> 0.089 | Q158: S2_AR_Prairie | R158: 153
B159: 154 | C159: AR | D159: Pulaski, AR | E159: 0.052 | F159: 0.051 | G159: 0.047 | H159: 0.049 | I159: 0.047 | J159: 0.047 | K159: 0.064 | L159: 0.071 | M159: 0.072 | N159: 0.06916666667 | P159: =INDEX(E159:N159,1,control!$C$15) -> 0.071 | Q159: S2_AR_Pulaski | R159: 154
B160: 155 | C160: AR | D160: Randolph, AR | E160: 0.094 | F160: 0.082 | G160: 0.077 | H160: 0.073 | I160: 0.093 | J160: 0.081 | K160: 0.089 | L160: 0.096 | M160: 0.103 | N160: 0.104 | P160: =INDEX(E160:N160,1,control!$C$15) -> 0.096 | Q160: S2_AR_Randolph | R160: 155
B161: 156 | C161: AR | D161: Saline, AR | E161: 0.048 | F161: 0.046 | G161: 0.042 | H161: 0.045 | I161: 0.042 | J161: 0.044 | K161: 0.063 | L161: 0.066 | M161: 0.065 | N161: 0.06466666667 | P161: =INDEX(E161:N161,1,control!$C$15) -> 0.066 | Q161: S2_AR_Saline | R161: 156
B162: 157 | C162: AR | D162: Scott, AR | E162: 0.048 | F162: 0.051 | G162: 0.044 | H162: 0.045 | I162: 0.046 | J162: 0.047 | K162: 0.066 | L162: 0.07 | M162: 0.069 | N162: 0.066 | P162: =INDEX(E162:N162,1,control!$C$15) -> 0.07 | Q162: S2_AR_Scott | R162: 157
B163: 158 | C163: AR | D163: Searcy, AR | E163: 0.055 | F163: 0.056 | G163: 0.049 | H163: 0.049 | I163: 0.049 | J163: 0.053 | K163: 0.074 | L163: 0.087 | M163: 0.085 | N163: 0.08 | P163: =INDEX(E163:N163,1,control!$C$15) -> 0.087 | Q163: S2_AR_Searcy | R163: 158
B164: 159 | C164: AR | D164: Sebastian, AR | E164: 0.049 | F164: 0.047 | G164: 0.042 | H164: 0.047 | I164: 0.051 | J164: 0.049 | K164: 0.073 | L164: 0.074 | M164: 0.083 | N164: 0.0765 | P164: =INDEX(E164:N164,1,control!$C$15) -> 0.074 | Q164: S2_AR_Sebastian | R164: 159
B165: 160 | C165: AR | D165: Sevier, AR | E165: 0.046 | F165: 0.046 | G165: 0.042 | H165: 0.041 | I165: 0.041 | J165: 0.04 | K165: 0.056 | L165: 0.064 | M165: 0.083 | N165: 0.07916666667 | P165: =INDEX(E165:N165,1,control!$C$15) -> 0.064 | Q165: S2_AR_Sevier | R165: 160
B166: 161 | C166: AR | D166: Sharp, AR | E166: 0.085 | F166: 0.078 | G166: 0.071 | H166: 0.069 | I166: 0.067 | J166: 0.074 | K166: 0.089 | L166: 0.095 | M166: 0.103 | N166: 0.1005 | P166: =INDEX(E166:N166,1,control!$C$15) -> 0.095 | Q166: S2_AR_Sharp | R166: 161
B167: 162 | C167: AR | D167: St. Francis, AR | E167: 0.092 | F167: 0.091 | G167: 0.084 | H167: 0.091 | I167: 0.096 | J167: 0.092 | K167: 0.1 | L167: 0.106 | M167: 0.11 | N167: 0.1075 | P167: =INDEX(E167:N167,1,control!$C$15) -> 0.106 | Q167: S2_AR_St._Francis | R167: 162
B168: 163 | C168: AR | D168: Stone, AR | E168: 0.075 | F168: 0.074 | G168: 0.064 | H168: 0.057 | I168: 0.057 | J168: 0.065 | K168: 0.085 | L168: 0.088 | M168: 0.102 | N168: 0.09916666667 | P168: =INDEX(E168:N168,1,control!$C$15) -> 0.088 | Q168: S2_AR_Stone | R168: 163
B169: 164 | C169: AR | D169: Union, AR | E169: 0.079 | F169: 0.073 | G169: 0.067 | H169: 0.068 | I169: 0.068 | J169: 0.063 | K169: 0.099 | L169: 0.106 | M169: 0.097 | N169: 0.0915 | P169: =INDEX(E169:N169,1,control!$C$15) -> 0.106 | Q169: S2_AR_Union | R169: 164
B170: 165 | C170: AR | D170: Van Buren, AR | E170: 0.071 | F170: 0.069 | G170: 0.06 | H170: 0.061 | I170: 0.059 | J170: 0.065 | K170: 0.101 | L170: 0.1 | M170: 0.098 | N170: 0.089 | P170: =INDEX(E170:N170,1,control!$C$15) -> 0.1 | Q170: S2_AR_Van_Buren | R170: 165
B171: 166 | C171: AR | D171: Washington, AR | E171: 0.038 | F171: 0.038 | G171: 0.033 | H171: 0.037 | I171: 0.039 | J171: 0.042 | K171: 0.06 | L171: 0.063 | M171: 0.06 | N171: 0.05633333333 | P171: =INDEX(E171:N171,1,control!$C$15) -> 0.063 | Q171: S2_AR_Washington | R171: 166
B172: 167 | C172: AR | D172: White, AR | E172: 0.063 | F172: 0.063 | G172: 0.062 | H172: 0.058 | I172: 0.066 | J172: 0.059 | K172: 0.079 | L172: 0.085 | M172: 0.088 | N172: 0.08266666667 | P172: =INDEX(E172:N172,1,control!$C$15) -> 0.085 | Q172: S2_AR_White | R172: 167
B173: 168 | C173: AR | D173: Woodruff, AR | E173: 0.095 | F173: 0.099 | G173: 0.09 | H173: 0.084 | I173: 0.087 | J173: 0.079 | K173: 0.106 | L173: 0.112 | M173: 0.116 | N173: 0.1093333333 | P173: =INDEX(E173:N173,1,control!$C$15) -> 0.112 | Q173: S2_AR_Woodruff | R173: 168
B174: 169 | C174: AR | D174: Yell, AR | E174: 0.052 | F174: 0.05 | G174: 0.041 | H174: 0.046 | I174: 0.043 | J174: 0.045 | K174: 0.079 | L174: 0.069 | M174: 0.065 | N174: 0.06233333333 | P174: =INDEX(E174:N174,1,control!$C$15) -> 0.069 | Q174: S2_AR_Yell | R174: 169
B175: 170 | C175: AZ | D175: Apache, AZ | E175: 0.118 | F175: 0.114 | G175: 0.105 | H175: 0.098 | I175: 0.085 | J175: 0.113 | K175: 0.157 | L175: 0.171 | M175: 0.189 | N175: 0.179 | P175: =INDEX(E175:N175,1,control!$C$15) -> 0.171 | Q175: S2_AZ_Apache | R175: 170
B176: 171 | C176: AZ | D176: Cochise, AZ | E176: 0.056 | F176: 0.049 | G176: 0.048 | H176: 0.044 | I176: 0.039 | J176: 0.057 | K176: 0.079 | L176: 0.088 | M176: 0.088 | N176: 0.08 | P176: =INDEX(E176:N176,1,control!$C$15) -> 0.088 | Q176: S2_AZ_Cochise | R176: 171
B177: 172 | C177: AZ | D177: Coconino, AZ | E177: 0.057 | F177: 0.053 | G177: 0.049 | H177: 0.043 | I177: 0.036 | J177: 0.054 | K177: 0.085 | L177: 0.097 | M177: 0.092 | N177: 0.08383333333 | P177: =INDEX(E177:N177,1,control!$C$15) -> 0.097 | Q177: S2_AZ_Coconino | R177: 172
B178: 173 | C178: AZ | D178: Gila, AZ | E178: 0.072 | F178: 0.064 | G178: 0.059 | H178: 0.051 | I178: 0.041 | J178: 0.063 | K178: 0.113 | L178: 0.118 | M178: 0.108 | N178: 0.09816666667 | P178: =INDEX(E178:N178,1,control!$C$15) -> 0.118 | Q178: S2_AZ_Gila | R178: 173
B179: 174 | C179: AZ | D179: Graham, AZ | E179: 0.069 | F179: 0.066 | G179: 0.06 | H179: 0.05 | I179: 0.041 | J179: 0.068 | K179: 0.15 | L179: 0.143 | M179: 0.105 | N179: 0.09433333333 | P179: =INDEX(E179:N179,1,control!$C$15) -> 0.143 | Q179: S2_AZ_Graham | R179: 174
B180: 175 | C180: AZ | D180: Greenlee, AZ | E180: 0.069 | F180: 0.051 | G180: 0.049 | H180: 0.037 | I180: 0.031 | J180: 0.051 | K180: 0.189 | L180: 0.115 | M180: 0.083 | N180: 0.06333333333 | P180: =INDEX(E180:N180,1,control!$C$15) -> 0.115 | Q180: S2_AZ_Greenlee | R180: 175
B181: 176 | C181: AZ | D181: La Paz, AZ | E181: 0.07 | F181: 0.067 | G181: 0.068 | H181: 0.056 | I181: 0.049 | J181: 0.075 | K181: 0.098 | L181: 0.106 | M181: 0.103 | N181: 0.09366666667 | P181: =INDEX(E181:N181,1,control!$C$15) -> 0.106 | Q181: S2_AZ_La_Paz | R181: 176
B182: 177 | C182: AZ | D182: Maricopa, AZ | E182: 0.052 | F182: 0.044 | G182: 0.04 | H182: 0.035 | I182: 0.031 | J182: 0.052 | K182: 0.091 | L182: 0.096 | M182: 0.084 | N182: 0.07283333333 | P182: =INDEX(E182:N182,1,control!$C$15) -> 0.096 | Q182: S2_AZ_Maricopa | R182: 177
B183: 178 | C183: AZ | D183: Mohave, AZ | E183: 0.049 | F183: 0.044 | G183: 0.043 | H183: 0.042 | I183: 0.045 | J183: 0.074 | K183: 0.114 | L183: 0.12 | M183: 0.11 | N183: 0.09783333333 | P183: =INDEX(E183:N183,1,control!$C$15) -> 0.12 | Q183: S2_AZ_Mohave | R183: 178
B184: 179 | C184: AZ | D184: Navajo, AZ | E184: 0.086 | F184: 0.084 | G184: 0.08 | H184: 0.072 | I184: 0.062 | J184: 0.098 | K184: 0.152 | L184: 0.16 | M184: 0.16 | N184: 0.1503333333 | P184: =INDEX(E184:N184,1,control!$C$15) -> 0.16 | Q184: S2_AZ_Navajo | R184: 179
B185: 180 | C185: AZ | D185: Pima, AZ | E185: 0.053 | F185: 0.046 | G185: 0.045 | H185: 0.039 | I185: 0.036 | J185: 0.056 | K185: 0.09 | L185: 0.094 | M185: 0.084 | N185: 0.07466666667 | P185: =INDEX(E185:N185,1,control!$C$15) -> 0.094 | Q185: S2_AZ_Pima | R185: 180
B186: 181 | C186: AZ | D186: Pinal, AZ | E186: 0.07 | F186: 0.06 | G186: 0.056 | H186: 0.049 | I186: 0.044 | J186: 0.072 | K186: 0.122 | L186: 0.117 | M186: 0.103 | N186: 0.08933333333 | P186: =INDEX(E186:N186,1,control!$C$15) -> 0.117 | Q186: S2_AZ_Pinal | R186: 181
B187: =B186+1 -> 182 | C187: AZ | D187: Santa Cruz, AZ | E187: 0.095 | F187: 0.094 | G187: 0.086 | H187: 0.074 | I187: 0.071 | J187: 0.107 | K187: 0.157 | L187: 0.172 | M187: 0.171 | N187: 0.1585 | P187: =INDEX(E187:N187,1,control!$C$15) -> 0.172 | Q187: S2_AZ_Santa_Cruz | R187: 182
B188: 183 | C188: AZ | D188: Yavapai, AZ | E188: 0.051 | F188: 0.046 | G188: 0.044 | H188: 0.039 | I188: 0.036 | J188: 0.06 | K188: 0.104 | L188: 0.11 | M188: 0.1 | N188: 0.0885 | P188: =INDEX(E188:N188,1,control!$C$15) -> 0.11 | Q188: S2_AZ_Yavapai | R188: 183
B189: 184 | C189: AZ | D189: Yuma, AZ | E189: 0.168 | F189: 0.156 | G189: 0.159 | H189: 0.146 | I189: 0.135 | J189: 0.179 | K189: 0.229 | L189: 0.263 | M189: 0.271 | N189: 0.258 | P189: =INDEX(E189:N189,1,control!$C$15) -> 0.263 | Q189: S2_AZ_Yuma | R189: 184
B190: 185 | C190: CA | D190: Alameda, CA | E190: 0.069 | F190: 0.059 | G190: 0.051 | H190: 0.044 | I190: 0.047 | J190: 0.062 | K190: 0.105 | L190: 0.113 | M190: 0.104 | N190: 0.09366666667 | P190: =INDEX(E190:N190,1,control!$C$15) -> 0.113 | Q190: S2_CA_Alameda | R190: 185
B191: 186 | C191: CA | D191: Alpine, CA | E191: 0.084 | F191: 0.08 | G191: 0.08 | H191: 0.066 | I191: 0.079 | J191: 0.103 | K191: 0.145 | L191: 0.154 | M191: 0.151 | N191: 0.1346666667 | P191: =INDEX(E191:N191,1,control!$C$15) -> 0.154 | Q191: S2_CA_Alpine | R191: 186
B192: 187 | C192: CA | D192: Amador, CA | E192: 0.062 | F192: 0.058 | G192: 0.056 | H192: 0.053 | I192: 0.058 | J192: 0.076 | K192: 0.117 | L192: 0.132 | M192: 0.128 | N192: 0.1261666667 | P192: =INDEX(E192:N192,1,control!$C$15) -> 0.132 | Q192: S2_CA_Amador | R192: 187
B193: 188 | C193: CA | D193: Butte, CA | E193: 0.076 | F193: 0.074 | G193: 0.068 | H193: 0.062 | I193: 0.067 | J193: 0.084 | K193: 0.125 | L193: 0.139 | M193: 0.136 | N193: 0.1305 | P193: =INDEX(E193:N193,1,control!$C$15) -> 0.139 | Q193: S2_CA_Butte | R193: 188
B194: 189 | C194: CA | D194: Calaveras, CA | E194: 0.074 | F194: 0.068 | G194: 0.063 | H194: 0.059 | I194: 0.064 | J194: 0.086 | K194: 0.139 | L194: 0.152 | M194: 0.146 | N194: 0.1383333333 | P194: =INDEX(E194:N194,1,control!$C$15) -> 0.152 | Q194: S2_CA_Calaveras | R194: 189
B195: 190 | C195: CA | D195: Colusa, CA | E195: 0.144 | F195: 0.137 | G195: 0.127 | H195: 0.122 | I195: 0.118 | J195: 0.137 | K195: 0.179 | L195: 0.202 | M195: 0.204 | N195: 0.2321666667 | P195: =INDEX(E195:N195,1,control!$C$15) -> 0.202 | Q195: S2_CA_Colusa | R195: 190
B196: 191 | C196: CA | D196: Contra Costa, CA | E196: 0.061 | F196: 0.054 | G196: 0.049 | H196: 0.043 | I196: 0.047 | J196: 0.062 | K196: 0.102 | L196: 0.111 | M196: 0.104 | N196: 0.09433333333 | P196: =INDEX(E196:N196,1,control!$C$15) -> 0.111 | Q196: S2_CA_Contra_Costa | R196: 191
B197: 192 | C197: CA | D197: Del Norte, CA | E197: 0.085 | F197: 0.081 | G197: 0.075 | H197: 0.069 | I197: 0.075 | J197: 0.088 | K197: 0.12 | L197: 0.131 | M197: 0.134 | N197: 0.1375 | P197: =INDEX(E197:N197,1,control!$C$15) -> 0.131 | Q197: S2_CA_Del_Norte | R197: 192
B198: 193 | C198: CA | D198: El Dorado, CA | E198: 0.056 | F198: 0.053 | G198: 0.048 | H198: 0.046 | I198: 0.052 | J198: 0.069 | K198: 0.111 | L198: 0.125 | M198: 0.118 | N198: 0.1115 | P198: =INDEX(E198:N198,1,control!$C$15) -> 0.125 | Q198: S2_CA_El_Dorado | R198: 193
B199: 194 | C199: CA | D199: Fresno, CA | E199: 0.118 | F199: 0.105 | G199: 0.09 | H199: 0.08 | I199: 0.086 | J199: 0.105 | K199: 0.15 | L199: 0.168 | M199: 0.165 | N199: 0.1625 | P199: =INDEX(E199:N199,1,control!$C$15) -> 0.168 | Q199: S2_CA_Fresno | R199: 194
B200: 195 | C200: CA | D200: Glenn, CA | E200: 0.103 | F200: 0.094 | G200: 0.085 | H200: 0.08 | I200: 0.088 | J200: 0.104 | K200: 0.144 | L200: 0.159 | M200: 0.158 | N200: 0.16 | P200: =INDEX(E200:N200,1,control!$C$15) -> 0.159 | Q200: S2_CA_Glenn | R200: 195
B201: 196 | C201: CA | D201: Humboldt, CA | E201: 0.069 | F201: 0.065 | G201: 0.061 | H201: 0.055 | I201: 0.059 | J201: 0.072 | K201: 0.109 | L201: 0.114 | M201: 0.113 | N201: 0.109 | P201: =INDEX(E201:N201,1,control!$C$15) -> 0.114 | Q201: S2_CA_Humboldt | R201: 196
B202: 197 | C202: CA | D202: Imperial, CA | E202: 0.156 | F202: 0.171 | G202: 0.161 | H202: 0.154 | I202: 0.181 | J202: 0.224 | K202: 0.279 | L202: 0.299 | M202: 0.297 | N202: 0.2748333333 | P202: =INDEX(E202:N202,1,control!$C$15) -> 0.299 | Q202: S2_CA_Imperial | R202: 197
... 2987 more rows

Sheet control
B2: Control
B4: Metrics | C4: =data!$E$5 -> 2003
C5: =data!$F$5 -> 2004 | F5: Select a color scale here
C6: =data!$G$5 -> 2005
C7: =data!$H$5 -> 2006 | F7: Recreate the shape index after you inserted a new map or added new shapes
C8: =data!$I$5 -> 2007
C9: =data!$J$5 -> 2008
C10: =data!$K$5 -> 2009
C11: =data!$L$5 -> 2010
C12: =data!$M$5 -> 2011
C13: =data!$N$5 -> 2012
B15: Selection Metric | C15: 8
F17: 1 | G17: =F17+1 -> 2 | H17: =G17+1 -> 3 | I17: 4 | J17: 5 | K17: 6 | L17: 7 | M17: 8 | N17: 9 | O17: 10 | P17: 11 | Q17: 12 | R17: 13 | S17: 14 | T17: 15 | U17: 16 | V17: 17 | W17: 18 | X17: 19 | Y17: 20 | Z17: 21 | AA17: 22 | AB17: =AA17+1 -> 23
B18: Threshold | C18: RGB | D18: Legend | F18: =$C$31 -> Green Yellow Red | G18: =$C$32 -> Green to Pink | H18: =$C$33 -> Green to Purple | I18: =$C$34 -> Green to Brown | J18: =$C$35 -> Blue to Red | K18: =$C$36 -> Blue to Red Brown | L18: =$C$37 -> Brown to Purple | M18: =$C$38 -> Brown Blue Green | N18: =$C$39 -> Purple to Green | O18: =$C$40 -> Pink to Green | P18: =$C$41 -> Red to Blue | Q18: =$C$42 -> Red to Black | R18: =$C$43 -> Red Yellow Blue | S18: =$C$44 -> Spectral | T18: =$C$45 -> Red Yellow Green | U18: =$C$46 -> Light | V18: =$C$47 -> Pairwise | W18: =$C$48 -> Light to Dark Blue | X18: =$C$49 -> Light to Dark Red | Y18: =$C$50 -> Light to Dark Brown | Z18: =$C$51 -> Light to Dark Green | AA18: =$C$52 -> Light to Dark Yellow | AB18: =$C$53 -> Light Grey to Black
B19: 0.01 | C19: 6369285 | D19: ="0% to "&TEXT(B19,"0%") -> 0% to 1%
B20: 0.02 | C20: 11298337 | D20: =TEXT(B19,"0%")&" to "&TEXT(B20,"0%") -> 1% to 2%
B21: 0.03 | C21: 12817219 | D21: =TEXT(B20,"0%")&" to "&TEXT(B21,"0%") -> 2% to 3%
B22: 0.04 | C22: 14599570 | D22: 3% to 4%
B23: 0.05 | C23: 15787473 | D23: 4% to 5%
B24: 0.07 | C24: 13097981 | D24: 5% to 7%
B25: 0.09 | C25: 8562164 | D25: 7% to 9%
B26: 0.11 | C26: 5071062 | D26: 9% to 11%
B27: 0.15 | C27: 2824370 | D27: 11% to 15%
B28: 1 | C28: 1376359 | D28: =TEXT(B27,"0%")&" or more" -> 15% or more
F29: =IF(F$17=myColorScaleSelection,"▲","") ->  | K29: ▲
F30: =IF(F$17=myColorScaleSelection,"Current Selection","") ->  | K30: Current Selection
B31: Color Scales | C31: Green Yellow Red
C32: Green to Pink
C33: Green to Purple
C34: Green to Brown
C35: Blue to Red
C36: Blue to Red Brown
C37: Brown to Purple
C38: Brown Blue Green
C39: Purple to Green
C40: Pink to Green
C41: Red to Blue
C42: Red to Black
C43: Red Yellow Blue
C44: Spectral
C45: Red Yellow Green
C46: Light
C47: Pairwise
C48: Light to Dark Blue
C49: Light to Dark Red
C50: Light to Dark Brown
C51: Light to Dark Green
C52: Light to Dark Yellow
C53: Light Grey to Black
B55: Selection Scale | C55: 6
B57: Show Status Bar | C57: TRUE
B59: Drill Down Level | C59: 0
